fUST/lending_fUST_20250827
["ID","MTS","AMOUNT","RATE_DAILY","PERIOD"]
[381562882,1756284650810,-480.0,0.00024011,2]
[381562884,1756284650819,-5325.71,0.00024011,2]
[381562886,1756284650828,-969.69,0.00024011,2]
[381562888,1756284650837,-151.0,0.00024011,7]
[381562890,1756284650846,-151.0,0.00024011,7]
[381562892,1756284650855,-315.777977,0.00024011,7]
[381562894,1756284650864,-315.777977,0.00024011,7]
[381562896,1756284650874,-315.777977,0.00024011,7]
[381562898,1756284650884,-315.777977,0.00024011,7]
[381562900,1756284650894,-151.0,0.00024011,7]
[381562902,1756284650903,-9340.02,0.00024011,2]
[381562904,1756284650912,-151.0,0.00024011,7]
[381562906,1756284650921,-480.0,0.00024011,2]
[381562908,1756284650931,-1022.69,0.00024011,2]
[381562910,1756284650940,-2576.94,0.00024011,2]
[381562912,1756284650949,-3058.31046799,0.00024073,2]
[381562914,1756284650959,-151.0,0.000241,6]
[381562916,1756284650969,-600.0,0.00024102,20]
[381562918,1756284650979,-480.0,0.00024173,2]
[381562920,1756284650989,-1732.12,0.00024173,2]
[381562922,1756284650999,-739.39,0.00024173,2]
[381562924,1756284651009,-2321.17,0.00024173,2]
[381562926,1756284651018,-480.0,0.00024173,2]
[381562928,1756284651027,-480.0,0.00024173,2]
[381562930,1756284651037,-2303.44,0.00024173,2]
[381562932,1756284651046,-2700.34,0.00024173,2]
[381562934,1756284651056,-4014.6,0.00024173,2]
[381562936,1756284651065,-482.02222871,0.00024173,2]
[381562938,1756284651075,-480.0,0.00024173,2]
[381562940,1756284651085,-4501.99,0.00024173,2]
[381562942,1756284651099,-933.51,0.00024173,2]
[381562944,1756284651108,-480.0,0.00024173,2]
[381562946,1756284651118,-562.37,0.00024173,2]
[381562948,1756284651127,-5472.01,0.00024173,2]
[381562950,1756284651138,-1817.38,0.00024173,2]
[381562952,1756284651147,-721.22,0.00024173,2]
[381562954,1756284651156,-531.27,0.00024173,2]
[381562956,1756284651167,-480.0,0.00024173,2]
[381562959,1756284651178,-791.08,0.00024173,2]
[381562961,1756284651187,-151.0,0.000242,5]
[381562963,1756284651197,-349.56850654,0.0002426,2]
[381562965,1756284651207,-151.92688484,0.0002426,2]
[381562967,1756284651216,-480.0,0.0002426,2]
[381562969,1756284651225,-480.0,0.0002426,2]
[381562971,1756284651234,-480.0,0.0002426,2]
[381562973,1756284651245,-480.0,0.0002426,2]
[381562975,1756284651255,-1460.05,0.00024261,2]
[381562977,1756284651264,-480.0,0.00024261,2]
[381562979,1756284651273,-480.0,0.00024261,2]
[381562981,1756284651283,-480.0,0.00024261,2]
[381562983,1756284651293,-480.0,0.00024261,2]
[381562985,1756284651302,-480.0,0.00024261,2]
[381562987,1756284651311,-1837.2,0.00024261,2]
[381562989,1756284651320,-605.14,0.00024261,2]
[381562991,1756284651330,-480.0,0.00024261,2]
[381562993,1756284651339,-493.22,0.00024261,2]
[381562995,1756284651348,-480.0,0.00024261,2]
[381562997,1756284651359,-756.67,0.00024261,2]
[381562999,1756284651368,-480.0,0.00024261,2]
[381563001,1756284651378,-484.48,0.00024261,2]
[381563003,1756284651387,-480.0,0.00024261,2]
[381563005,1756284651397,-480.0,0.00024261,2]
[381563007,1756284651408,-480.0,0.00024261,2]
[381563009,1756284651417,-480.0,0.00024261,2]
[381563011,1756284651427,-815.31,0.00024261,2]
[381563013,1756284651436,-809.93,0.00024261,2]
[381563015,1756284651445,-507.35,0.00024261,2]
[381563017,1756284651455,-2767.19,0.00024261,2]
[381563019,1756284651463,-480.0,0.00024261,2]
[381563021,1756284651472,-1042.63,0.00024261,2]
[381563023,1756284651482,-480.0,0.00024261,2]
[381563025,1756284651491,-645.51,0.00024261,2]
[381563027,1756284651501,-611.26,0.00024261,2]
[381563029,1756284651512,-939.18,0.00024261,2]
[381563031,1756284651521,-809.41,0.00024261,2]
[381563033,1756284651530,-658.49,0.00024261,2]
[381563035,1756284651540,-6603.54,0.00024261,2]
[381563037,1756284651549,-480.0,0.00024261,2]
[381563039,1756284651558,-6244.01,0.00024261,2]
[381563041,1756284651567,-1384.25,0.00024261,2]
[381563043,1756284651577,-731.94,0.00024261,2]
[381563045,1756284651586,-1802.88,0.00024261,2]
[381563047,1756284651596,-461.85512257,0.00024261,2]
[381563049,1756284651605,-480.0,0.00024261,2]
[381563051,1756284651614,-2127.62,0.00024261,2]
[381563053,1756284651623,-933.62,0.00024261,2]
[381563055,1756284651632,-480.0,0.00024261,2]
[381563057,1756284651642,-639.21,0.00024261,2]
[381563059,1756284651651,-3109.7,0.00024261,2]
[381563061,1756284651660,-480.0,0.00024261,2]
[381563063,1756284651670,-4787.12,0.00024261,2]
[381563065,1756284651680,-309.93081023,0.00024261,2]
[381563067,1756284651689,-1056.71,0.00024261,2]
[381563069,1756284651698,-480.0,0.00024261,2]
[381563071,1756284651707,-480.0,0.00024261,2]
[381563073,1756284651716,-2741.24,0.00024261,2]
[381563075,1756284651725,-480.0,0.00024261,2]
[381563077,1756284651735,-1326.73,0.00024261,2]
[381563079,1756284651745,-480.0,0.00024261,2]
[381563081,1756284651754,-480.0,0.00024261,2]
[381563083,1756284651763,-1170.95,0.00024261,2]
[381563085,1756284651773,-480.0,0.00024262,2]
[381563087,1756284651782,-480.0,0.00024262,2]
[381563089,1756284651792,-831.06,0.00024262,2]
[381563091,1756284651801,-480.0,0.00024262,2]
[381563093,1756284651811,-480.0,0.00024262,2]
[381563095,1756284651820,-900.75,0.00024262,2]
[381563097,1756284651830,-480.0,0.00024262,2]
[381563099,1756284651839,-204.43774611,0.00024262,2]
[381563101,1756284651848,-480.0,0.00024262,2]
[381563103,1756284651857,-389.39973075,0.00024262,2]
[381563105,1756284651866,-797.64,0.00024262,2]
[381563107,1756284651877,-682.46,0.00024262,2]
[381563109,1756284651886,-764.44,0.00024262,2]
[381563111,1756284651895,-500.0,0.00024262,2]
[381563113,1756284651904,-1025.99,0.00024262,2]
[381563115,1756284651914,-1041.55,0.00024262,2]
[381563117,1756284651923,-704.33,0.00024262,2]
[381563119,1756284651932,-795.25,0.00024262,2]
[381563121,1756284651941,-480.0,0.00024262,2]
[381563123,1756284651950,-568.55,0.00024262,2]
[381563125,1756284651960,-772.12,0.00024262,2]
[381563127,1756284651970,-1819.08,0.00024262,2]
[381563129,1756284651979,-647.0,0.00024262,2]
[381563131,1756284651988,-1723.3,0.00024262,2]
[381563133,1756284651998,-2074.8,0.00024262,2]
[381563135,1756284652008,-621.67,0.00024262,2]
[381563137,1756284652017,-481.84083818,0.00024262,2]
[381563139,1756284652027,-902.12,0.00024262,2]
[381563141,1756284652037,-1017.58,0.00024262,2]
[381563143,1756284652046,-480.0,0.00024262,2]
[381563145,1756284652055,-1052.17,0.00024262,2]
[381563147,1756284652065,-1154.13,0.00024262,2]
[381563149,1756284652074,-480.0,0.00024262,2]
[381563167,1756284652236,-480.0,0.00024262,2]
[381563169,1756284652246,-480.0,0.00024262,2]
[381563171,1756284652255,-480.0,0.00024262,2]
[381563174,1756284652265,-480.0,0.00024262,2]
[381563176,1756284652276,-1174.15,0.00024262,2]
[381563178,1756284652286,-480.0,0.00024262,2]
[381563180,1756284652295,-1636.2,0.00024262,2]
[381563182,1756284652305,-715.18,0.00024262,2]
[381563184,1756284652314,-480.0,0.00024262,2]
[381563186,1756284652324,-540.26,0.00024262,2]
[381563188,1756284652333,-480.0,0.00024262,2]
[381563190,1756284652342,-480.0,0.00024262,2]
[381563192,1756284652351,-781.32,0.00024262,2]
[381563194,1756284652360,-3234.33,0.00024262,2]
[381563196,1756284652370,-480.0,0.00024262,2]
[381563198,1756284652379,-480.0,0.00024262,2]
[381563200,1756284652388,-525.76,0.00024262,2]
[381563202,1756284652398,-480.0,0.00024262,2]
[381563204,1756284652407,-484.88,0.00024262,2]
[381563206,1756284652417,-2772.94,0.00024262,2]
[381563208,1756284652426,-2493.98,0.00024262,2]
[381563210,1756284652435,-480.0,0.00024262,2]
[381563212,1756284652444,-1030.73,0.00024262,2]
[381563214,1756284652453,-3554.1,0.00024262,2]
[381563216,1756284652464,-1519.01,0.00024262,2]
[381563219,1756284652484,-480.0,0.00024262,2]
[381563221,1756284652496,-598.74,0.00024262,2]
[381563223,1756284652507,-845.79,0.00024262,2]
[381563225,1756284652516,-480.0,0.00024262,2]
[381563227,1756284652526,-480.0,0.00024262,2]
[381563230,1756284652537,-380.78345748,0.00024262,2]
[381563232,1756284652547,-699.05,0.00024262,2]
[381563234,1756284652558,-509.04,0.00024262,2]
[381563236,1756284652568,-992.31,0.00024262,2]
[381563238,1756284652577,-480.0,0.00024262,2]
[381563240,1756284652589,-798.72,0.00024262,2]
[381563242,1756284652598,-853.39,0.00024262,2]
[381563244,1756284652609,-1158.64,0.00024262,2]
[381563246,1756284652619,-951.91,0.00024262,2]
[381563248,1756284652629,-480.0,0.00024263,2]
[381563251,1756284652639,-862.88,0.00024263,2]
[381563253,1756284652648,-800.63,0.00024263,2]
[381563255,1756284652658,-1932.0,0.00024263,2]
[381563257,1756284652668,-480.0,0.00024263,2]
[381563259,1756284652677,-480.0,0.00024263,2]
[381563261,1756284652687,-844.47,0.00024263,2]
[381563263,1756284652697,-710.54,0.00024263,2]
[381563265,1756284652706,-480.0,0.00024263,2]
[381563267,1756284652716,-903.5,0.00024263,2]
[381563269,1756284652725,-480.0,0.00024263,2]
[381563271,1756284652735,-480.0,0.00024263,2]
[381563273,1756284652744,-860.61,0.00024263,2]
[381563275,1756284652754,-480.0,0.00024263,2]
[381563277,1756284652764,-659.15,0.00024263,2]
[381563279,1756284652774,-878.52,0.00024263,2]
[381563281,1756284652784,-480.0,0.00024263,2]
[381563284,1756284652793,-677.9,0.00024263,2]
[381563286,1756284652804,-529.55,0.00024263,2]
[381563288,1756284652813,-629.34,0.00024263,2]
[381563290,1756284652823,-480.0,0.00024263,2]
[381563292,1756284652833,-480.0,0.00024263,2]
[381563294,1756284652842,-389.38586396,0.00024263,2]
[381563296,1756284652852,-480.0,0.00024263,2]
[381563298,1756284652861,-1126.22,0.00024263,2]
[381563300,1756284652871,-480.0,0.00024263,2]
[381563302,1756284652881,-480.0,0.00024263,2]
[381563304,1756284652891,-480.0,0.00024263,2]
[381563306,1756284652901,-480.0,0.00024263,2]
[381563308,1756284652910,-731.53,0.00024263,2]
[381563310,1756284652920,-480.0,0.00024263,2]
[381563312,1756284652929,-480.0,0.00024263,2]
[381563314,1756284652939,-641.75,0.00024263,2]
[381563316,1756284652948,-480.0,0.00024263,2]
[381563318,1756284652958,-889.19,0.00024263,2]
[381563320,1756284652968,-1008.06,0.00024263,2]
[381563322,1756284652978,-480.0,0.00024263,2]
[381563324,1756284652987,-480.0,0.00024263,2]
[381563326,1756284652997,-480.0,0.00024263,2]
[381563328,1756284653007,-480.0,0.00024263,2]
[381563330,1756284653016,-480.0,0.00024263,2]
[381563332,1756284653026,-480.0,0.00024263,2]
[381563334,1756284653036,-480.0,0.00024263,2]
[381563336,1756284653046,-480.0,0.00024263,2]
[381563338,1756284653056,-480.0,0.00024263,2]
[381563340,1756284653066,-480.0,0.00024263,2]
[381563342,1756284653076,-673.71,0.00024263,2]
[381563344,1756284653085,-152.238501,0.00024263,7]
[381563346,1756284653098,-151.0,0.00024263,7]
[381563348,1756284653116,-151.0,0.00024263,7]
[381563350,1756284653127,-151.0,0.00024263,7]
[381563352,1756284653137,-151.0,0.00024263,7]
[381563354,1756284653147,-179.595668,0.00024263,7]
[381563357,1756284653157,-480.0,0.00024263,2]
[381563358,1756284653167,-896.4,0.00024263,2]
[381563360,1756284653176,-891.75,0.00024263,2]
[381563362,1756284653186,-202.363698,0.00024263,7]
[381563365,1756284653196,-202.363698,0.00024263,7]
[381563367,1756284653206,-202.363698,0.00024263,7]
[381563369,1756284653216,-202.363698,0.00024263,7]
[381563371,1756284653225,-15977.42,0.00024263,2]
[381563373,1756284653235,-480.0,0.00024263,2]
[381563375,1756284653244,-480.0,0.00024263,2]
[381563377,1756284653254,-1121.12,0.00024263,2]
[381563379,1756284653263,-151.0,0.00024263,7]
[381563381,1756284653273,-480.0,0.00024263,2]
[381563383,1756284653282,-151.0,0.00024263,7]
[381563385,1756284653292,-151.0,0.00024263,7]
[381563387,1756284653301,-480.0,0.00024263,2]
[381563389,1756284653311,-205.789613,0.00024263,7]
[381563391,1756284653321,-480.0,0.00024263,2]
[381563393,1756284653331,-480.0,0.00024263,2]
[381563395,1756284653340,-480.0,0.00024263,2]
[381563397,1756284653350,-795.24,0.00024263,2]
[381563399,1756284653360,-1088.52,0.00024263,2]
[381563401,1756284653369,-866.69,0.00024263,2]
[381563403,1756284653379,-425.44119842,0.00024263,7]
[381563405,1756284653389,-480.0,0.00024263,2]
[381563407,1756284653401,-151.0,0.00024263,7]
[381563409,1756284653410,-151.0,0.00024263,7]
[381563411,1756284653421,-480.0,0.00024263,2]
[381563413,1756284653430,-315.777977,0.00024263,7]
[381563415,1756284653440,-315.777977,0.00024263,7]
[381563417,1756284653451,-315.777977,0.00024263,7]
[381563419,1756284653460,-315.777977,0.00024263,7]
[381563421,1756284653469,-232.59867797,0.00024263,7]
[381563424,1756284653480,-204.839988,0.00024263,7]
[381563426,1756284653489,-1019.34,0.00024263,2]
[381563428,1756284653500,-3283.8,0.00024263,2]
[381563430,1756284653509,-619.47,0.00024263,2]
[381563432,1756284653519,-480.0,0.00024263,2]
[381563434,1756284653528,-534.32,0.00024263,2]
[381563436,1756284653538,-151.0,0.00024263,7]
[381563438,1756284653547,-738.03,0.00024263,2]
[381563440,1756284653557,-480.0,0.00024263,2]
[381563442,1756284653566,-480.0,0.00024263,2]
[381563444,1756284653575,-867.16,0.00024263,2]
[381563446,1756284653585,-482.40434732,0.00024263,2]
[381563448,1756284653595,-814.29,0.00024263,2]
[381563450,1756284653605,-480.0,0.00024263,2]
[381563452,1756284653614,-976.12,0.00024263,2]
[381563454,1756284653624,-480.0,0.00024263,2]
[381563456,1756284653634,-1272.09,0.00024263,2]
[381563458,1756284653643,-480.0,0.00024263,2]
[381563461,1756284653653,-480.0,0.00024263,2]
[381563463,1756284653663,-480.0,0.00024263,2]
[381563465,1756284653672,-1504.54,0.00024263,2]
[381563467,1756284653682,-524.38,0.00024263,2]
[381563469,1756284653691,-1000.0,0.00024268,2]
[381563471,1756284653700,-480.0,0.00024273,2]
[381563473,1756284653710,-806.88,0.00024273,2]
[381563475,1756284653720,-800.0,0.00024282,2]
[381563477,1756284653730,-10444.4,0.00024285,2]
[381563479,1756284653740,-480.0,0.00024285,2]
[381563481,1756284653749,-5325.71,0.00024285,2]
[381563483,1756284653759,-969.69,0.00024285,2]
[381563485,1756284653768,-9340.02,0.00024285,2]
[381563487,1756284653778,-480.0,0.00024285,2]
[381563489,1756284653787,-1022.69,0.00024285,2]
[381563491,1756284653797,-2576.94,0.00024285,2]
[381563494,1756284653807,-151.0,0.000243,5]
[381563496,1756284653816,-800.0,0.00024333,2]
[381563498,1756284653826,-151.0,0.000244,6]
[381563500,1756284653836,-151.0,0.000244,5]
[381563502,1756284653846,-500.0,0.00024421,2]
[381563504,1756284653855,-500.0,0.00024421,2]
[381563506,1756284653864,-1000.0,0.00024421,2]
[381563508,1756284653874,-1000.0,0.00024421,2]
[381563510,1756284653884,-1013.55674702,0.00024421,2]
[381563512,1756284653893,-1000.0,0.00024421,2]
[381563514,1756284653903,-693.58787077,0.00024421,2]
[381563516,1756284653912,-1000.0,0.00024421,2]
[381563518,1756284653921,-935.67679133,0.00024421,2]
[381563520,1756284653931,-877.0,0.00024421,2]
[381563522,1756284653940,-155.18906074,0.00024421,2]
[381563524,1756284653949,-151.0,0.00024421,2]
[381563526,1756284653958,-500.0,0.00024421,2]
[381563528,1756284653968,-500.0,0.00024421,2]
[381563530,1756284653977,-151.0,0.00024421,2]
[381563532,1756284653987,-152.70876926,0.00024421,2]
[381563534,1756284653995,-198.0,0.00024421,2]
[381563536,1756284654005,-151.0,0.00024421,2]
[381563538,1756284654014,-194.58011813,0.00024421,2]
[381563540,1756284654023,-154.97535819,0.00024421,2]
[381563542,1756284654032,-151.0,0.00024421,2]
[381563544,1756284654042,-151.0,0.00024421,2]
[381563546,1756284654051,-151.0,0.00024421,2]
[381563548,1756284654060,-500.0,0.00024421,2]
[381563550,1756284654069,-3322.3,0.00024447,2]
[381563552,1756284654078,-480.0,0.00024447,2]
[381563554,1756284654089,-890.55,0.00024447,2]
[381563556,1756284654100,-480.0,0.00024447,2]
[381563558,1756284654109,-1732.12,0.00024447,2]
[381563560,1756284654119,-1009.58,0.00024447,2]
[381563562,1756284654128,-480.0,0.00024447,2]
[381563564,1756284654137,-739.39,0.00024447,2]
[381563566,1756284654146,-5847.87,0.00024447,2]
[381563568,1756284654156,-2321.17,0.00024447,2]
[381563570,1756284654165,-480.0,0.00024447,2]
[381563572,1756284654174,-480.0,0.00024447,2]
[381563574,1756284654184,-2303.44,0.00024447,2]
[381563576,1756284654193,-2700.34,0.00024447,2]
[381563578,1756284654203,-4014.6,0.00024447,2]
[381563580,1756284654214,-4501.99,0.00024447,2]
[381563582,1756284654223,-1067.62,0.00024447,2]
[381563584,1756284654232,-933.51,0.00024447,2]
[381563586,1756284654242,-480.0,0.00024447,2]
[381563588,1756284654251,-562.37,0.00024447,2]
[381563590,1756284654260,-5472.01,0.00024447,2]
[381563592,1756284654270,-1817.38,0.00024447,2]
[381563594,1756284654279,-721.22,0.00024447,2]
[381563596,1756284654288,-531.27,0.00024447,2]
[381563598,1756284654298,-480.0,0.00024447,2]
[381563600,1756284654307,-480.0,0.00024447,2]
[381563602,1756284654316,-791.08,0.00024447,2]
[381563604,1756284654325,-223.00104714,0.00024448,2]
[381563606,1756284654334,-15301.2916448,0.00024459,2]
[381563608,1756284654343,-75656.18,0.000245,7]
[381563610,1756284654353,-853.45,0.00024518,2]
[381563612,1756284654363,-480.0,0.00024519,2]
[381563614,1756284654372,-800.04,0.00024519,2]
[381563615,1756284654381,-1053.14,0.00024519,2]
[381563616,1756284654390,-1238.2,0.00024519,2]
[381563617,1756284654399,-480.0,0.00024519,2]
[381563618,1756284654408,-875.84,0.00024519,2]
[381563619,1756284654418,-741.23,0.00024519,2]
[381563620,1756284654427,-151.0,0.00024519,7]
[381563621,1756284654436,-151.0,0.00024519,7]
[381563622,1756284654445,-424.67081187,0.00024519,2]
[381563623,1756284654456,-562.61,0.00024519,2]
[381563624,1756284654466,-502.80518078,0.00024519,2]
[381563625,1756284654475,-518.95,0.00024519,2]
[381563626,1756284654484,-483.1008911,0.00024519,2]
[381563627,1756284654494,-480.0,0.00024519,2]
[381563628,1756284654504,-480.0,0.00024519,2]
[381563629,1756284654513,-843.28,0.00024519,2]
[381563631,1756284654523,-480.0,0.00024519,2]
[381563633,1756284654532,-480.0,0.00024534,2]
[381563635,1756284654541,-480.0,0.00024534,2]
[381563637,1756284654550,-480.0,0.00024534,2]
[381563639,1756284654559,-480.0,0.00024534,2]
[381563641,1756284654568,-1460.05,0.00024535,2]
[381563643,1756284654578,-480.0,0.00024535,2]
[381563645,1756284654587,-480.0,0.00024535,2]
[381563647,1756284654596,-480.0,0.00024535,2]
[381563649,1756284654605,-483.62242684,0.00024535,2]
[381563651,1756284654614,-480.0,0.00024535,2]
[381563653,1756284654623,-1837.2,0.00024535,2]
[381563655,1756284654632,-605.14,0.00024535,2]
[381563657,1756284654642,-480.0,0.00024535,2]
[381563659,1756284654651,-493.22,0.00024535,2]
[381563661,1756284654660,-480.0,0.00024535,2]
[381563663,1756284654669,-756.67,0.00024535,2]
[381563665,1756284654679,-480.0,0.00024535,2]
[381563667,1756284654688,-484.48,0.00024535,2]
[381563669,1756284654697,-480.0,0.00024535,2]
[381563671,1756284654707,-480.0,0.00024535,2]
[381563673,1756284654715,-480.0,0.00024535,2]
[381563675,1756284654725,-480.0,0.00024535,2]
[381563677,1756284654734,-815.31,0.00024535,2]
[381563679,1756284654743,-809.93,0.00024535,2]
[381563681,1756284654752,-507.35,0.00024535,2]
[381563683,1756284654761,-2767.19,0.00024535,2]
[381563685,1756284654770,-1042.63,0.00024535,2]
[381563704,1756284654780,-480.0,0.00024535,2]
[381563706,1756284654951,-645.51,0.00024535,2]
[381563708,1756284654961,-611.26,0.00024535,2]
[381563710,1756284654971,-939.18,0.00024535,2]
[381563712,1756284654981,-809.41,0.00024535,2]
[381563714,1756284654990,-658.49,0.00024535,2]
[381563716,1756284655000,-6603.54,0.00024535,2]
[381563718,1756284655010,-480.0,0.00024535,2]
[381563720,1756284655019,-6244.01,0.00024535,2]
[381563722,1756284655029,-1384.25,0.00024535,2]
[381563724,1756284655039,-731.94,0.00024535,2]
[381563726,1756284655049,-1802.88,0.00024535,2]
[381563728,1756284655058,-480.0,0.00024535,2]
[381563730,1756284655068,-2127.62,0.00024535,2]
[381563732,1756284655078,-933.62,0.00024535,2]
[381563735,1756284655089,-480.0,0.00024535,2]
[381563737,1756284655102,-639.21,0.00024535,2]
[381563739,1756284655111,-3109.7,0.00024535,2]
[381563740,1756284655121,-480.0,0.00024535,2]
[381563741,1756284655130,-4787.12,0.00024535,2]
[381563742,1756284655140,-1056.71,0.00024535,2]
[381563743,1756284655149,-480.0,0.00024535,2]
[381563744,1756284655158,-480.0,0.00024535,2]
[381563745,1756284655167,-2741.24,0.00024535,2]
[381563746,1756284655177,-480.0,0.00024535,2]
[381563747,1756284655187,-1326.73,0.00024535,2]
[381563748,1756284655197,-480.0,0.00024535,2]
[381563749,1756284655206,-480.0,0.00024535,2]
[381563750,1756284655215,-480.0,0.00024536,2]
[381563751,1756284655224,-480.0,0.00024536,2]
[381563752,1756284655233,-831.06,0.00024536,2]
[381563753,1756284655243,-480.0,0.00024536,2]
[381563754,1756284655252,-480.0,0.00024536,2]
[381563755,1756284655262,-900.75,0.00024536,2]
[381563756,1756284655271,-480.0,0.00024536,2]
[381563757,1756284655279,-480.0,0.00024536,2]
[381563758,1756284655288,-797.64,0.00024536,2]
[381563759,1756284655298,-682.46,0.00024536,2]
[381563760,1756284655307,-764.44,0.00024536,2]
[381563761,1756284655316,-500.0,0.00024536,2]
[381563762,1756284655325,-1025.99,0.00024536,2]
[381563763,1756284655335,-1041.55,0.00024536,2]
[381563764,1756284655344,-704.33,0.00024536,2]
[381563765,1756284655353,-795.25,0.00024536,2]
[381563766,1756284655362,-480.0,0.00024536,2]
[381563767,1756284655371,-568.55,0.00024536,2]
[381563768,1756284655380,-772.12,0.00024536,2]
[381563769,1756284655389,-1819.08,0.00024536,2]
[381563770,1756284655398,-647.0,0.00024536,2]
[381563771,1756284655407,-1723.3,0.00024536,2]
[381563772,1756284655416,-2074.8,0.00024536,2]
[381563773,1756284655426,-621.67,0.00024536,2]
[381563774,1756284655435,-902.12,0.00024536,2]
[381563775,1756284655444,-1017.58,0.00024536,2]
[381563776,1756284655453,-1052.17,0.00024536,2]
[381563777,1756284655462,-1154.13,0.00024536,2]
[381563778,1756284655472,-480.0,0.00024536,2]
[381563779,1756284655481,-480.0,0.00024536,2]
[381563780,1756284655490,-480.0,0.00024536,2]
[381563781,1756284655499,-480.0,0.00024536,2]
[381563782,1756284655508,-480.0,0.00024536,2]
[381563783,1756284655517,-1174.15,0.00024536,2]
[381563784,1756284655526,-480.0,0.00024536,2]
[381563785,1756284655535,-1636.2,0.00024536,2]
[381563786,1756284655545,-715.18,0.00024536,2]
[381563787,1756284655554,-480.0,0.00024536,2]
[381563788,1756284655563,-540.26,0.00024536,2]
[381563789,1756284655572,-480.0,0.00024536,2]
[381563790,1756284655582,-432.75125563,0.00024536,2]
[381563791,1756284655591,-781.32,0.00024536,2]
[381563792,1756284655600,-3234.33,0.00024536,2]
[381563793,1756284655610,-480.0,0.00024536,2]
[381563794,1756284655619,-480.0,0.00024536,2]
[381563795,1756284655629,-525.76,0.00024536,2]
[381563796,1756284655638,-480.0,0.00024536,2]
[381563797,1756284655647,-484.88,0.00024536,2]
[381563798,1756284655656,-2772.94,0.00024536,2]
[381563799,1756284655665,-2493.98,0.00024536,2]
[381563800,1756284655674,-480.0,0.00024536,2]
[381563801,1756284655683,-1030.73,0.00024536,2]
[381563802,1756284655692,-3554.1,0.00024536,2]
[381563803,1756284655701,-1519.01,0.00024536,2]
[381563804,1756284655710,-598.74,0.00024536,2]
[381563805,1756284655720,-480.0,0.00024536,2]
[381563806,1756284655729,-845.79,0.00024536,2]
[381563807,1756284655738,-480.0,0.00024536,2]
[381563808,1756284655748,-480.0,0.00024536,2]
[381563809,1756284655757,-699.05,0.00024536,2]
[381563810,1756284655766,-509.04,0.00024536,2]
[381563811,1756284655775,-992.31,0.00024536,2]
[381563812,1756284655788,-480.0,0.00024536,2]
[381563813,1756284655797,-798.72,0.00024536,2]
[381563814,1756284655807,-853.39,0.00024536,2]
[381563816,1756284655817,-1158.64,0.00024536,2]
[381563818,1756284655828,-951.91,0.00024536,2]
[381563820,1756284655838,-480.0,0.00024537,2]
[381563822,1756284655848,-862.88,0.00024537,2]
[381563824,1756284655858,-800.63,0.00024537,2]
[381563826,1756284655867,-1932.0,0.00024537,2]
[381563828,1756284655876,-480.0,0.00024537,2]
[381563830,1756284655885,-480.0,0.00024537,2]
[381563832,1756284655894,-844.47,0.00024537,2]
[381563834,1756284655904,-710.54,0.00024537,2]